fUSD/lending_fUSD_20250222
["ID","MTS","AMOUNT","RATE_DAILY","PERIOD"]
[354119027,1740258636338,-2003.67,0.0001726,4]
[354119029,1740258636347,-330.14899986,0.000173,2]
[354119031,1740258636356,-150.0,0.00017304,2]
[354119033,1740258636366,-567.34816521,0.00017336,2]
[354119035,1740258636375,-987.36,0.0001755,2]
[354119036,1740258636385,-987.36,0.0001755,2]
[354119037,1740258636394,-987.36,0.0001755,2]
[354119038,1740258636404,-987.36,0.0001755,2]
[354119039,1740258636414,-1971.4,0.0001755,2]
[354119040,1740258636423,-208.48086479,0.00017606,2]
[354119041,1740258636432,-150.0,0.00017664,2]
[354119042,1740258636442,-500.0,0.00017694,2]
[354119044,1740258636451,-500.0,0.00017694,2]
[354119045,1740258636461,-922.13,0.0001773,2]
[354119046,1740258636470,-1000.0,0.000178,2]
[354119047,1740258636479,-494.61,0.00017808,2]
[354119048,1740258636489,-500.0,0.0001785,2]
[354119049,1740258636499,-2300.0,0.000179,6]
[354119050,1740258636509,-1000.0,0.00017933,2]
[354119051,1740258636518,-162.29,0.00017948,2]
[354119052,1740258636527,-151.0,0.00017989,2]
[354119053,1740258636536,-151.0,0.00017989,2]
[354119054,1740258636545,-151.0,0.00017989,2]
[354119055,1740258636555,-151.0,0.00017989,2]
[354119056,1740258636564,-151.0,0.00017989,2]
[354119057,1740258636574,-151.0,0.00017989,2]
[354119058,1740258636584,-151.0,0.00017989,2]
[354119059,1740258636594,-151.0,0.00017989,2]
[354119060,1740258636604,-666.98,0.00018,7]
[354119061,1740258636614,-150.0,0.00018025,2]
[354119062,1740258636622,-208.48086479,0.00018076,2]
[354119063,1740258636631,-200.0,0.00018082,2]
[354119064,1740258636640,-330.14899986,0.00018167,2]
[354119065,1740258636649,-666.0,0.00018188,2]
[354119066,1740258636659,-151.0,0.00018189,2]
[354119067,1740258636668,-151.0,0.00018189,2]
[354119068,1740258636678,-151.0,0.00018189,2]
[354119069,1740258636688,-151.0,0.00018189,2]
[354119070,1740258636698,-151.0,0.00018189,2]
[354119071,1740258636707,-151.0,0.00018189,2]
[354119072,1740258636716,-151.0,0.00018189,2]
[354119073,1740258636726,-151.0,0.00018189,2]
[354119074,1740258636735,-151.0,0.00018189,2]
[354119075,1740258636745,-151.0,0.00018189,2]
[354119076,1740258636754,-151.0,0.00018189,2]
[354119077,1740258636763,-151.0,0.00018189,2]
[354119078,1740258636773,-151.0,0.00018189,2]
[354119079,1740258636782,-151.0,0.00018189,2]
[354119080,1740258636791,-151.0,0.00018189,2]
[354119081,1740258636801,-151.0,0.00018189,2]
[354119082,1740258636811,-155.0,0.0001825,3]
[354119083,1740258636821,-152.0,0.00018309,3]
[354119084,1740258636830,-296.304138,0.00018365,2]
[354119085,1740258636839,-150.0,0.00018385,2]
[354119086,1740258636848,-151.0,0.00018389,2]
[354119087,1740258636857,-151.0,0.00018389,2]
[354119088,1740258636866,-151.0,0.00018389,2]
[354119089,1740258636876,-151.0,0.00018389,2]
[354119090,1740258636886,-151.0,0.00018389,2]
[354119091,1740258636895,-151.0,0.00018389,2]
[354119092,1740258636905,-151.0,0.00018389,2]
[354119093,1740258636914,-151.0,0.00018389,2]
[354119094,1740258636924,-743.15122946,0.00018398,2]
[354119095,1740258636934,-150.0,0.00018398,2]
[354119096,1740258636944,-55555.0,0.000184,2]
[354119097,1740258636956,-500.0,0.00018419,2]
[354119098,1740258636966,-152.38,0.00018466,2]
[354119099,1740258636975,-25596.5861938,0.000185,2]
[354119100,1740258636985,-208.48086479,0.00018547,2]
[354119101,1740258636994,-913.39461305,0.00018557,30]
[354119102,1740258637004,-72815.46164665,0.00018558,30]
[354119103,1740258637013,-241734.76796372,0.00018565,30]
[354119104,1740258637022,-150.0,0.00018566,2]
[354119105,1740258637031,-150.0,0.00018567,2]
[354119106,1740258637041,-913.39461305,0.00018572,30]
[354119107,1740258637050,-29101.86672269,0.00018573,30]
[354119108,1740258637060,-200.0,0.00018574,30]
[354119109,1740258637070,-29101.86672269,0.00018585,30]
[354119110,1740258637079,-241734.76796372,0.00018593,30]
[354119111,1740258637089,-241734.76796372,0.00018599,30]
[354119112,1740258637099,-144025.75691592,0.000186,3]
[354119113,1740258637108,-1624.024,0.000186,3]
[354119114,1740258637117,-154.61,0.000186,2]
[354119115,1740258637126,-154.61,0.000186,2]
[354119116,1740258637135,-515.05927803,0.00018601,30]
[354119117,1740258637145,-33273.11719143,0.00018602,30]
[354119118,1740258637155,-515.05927803,0.00018603,30]
[354119119,1740258637163,-25094.3241872,0.00018606,30]
[354119120,1740258637174,-200.0,0.00018612,30]
[354119121,1740258637183,-19801.8372505,0.00018612,30]
[354119122,1740258637193,-510459.77877442,0.00018612,30]
[354119123,1740258637203,-794.23097184,0.00018613,30]
[354119124,1740258637213,-280.34380654,0.0001862,30]
[354119125,1740258637223,-6081.14090397,0.00018623,30]
[354119126,1740258637232,-794.23097184,0.00018632,30]
[354119127,1740258637242,-231035.80345042,0.00018633,30]
[354119128,1740258637258,-892.55129881,0.00018633,30]
[354119129,1740258637269,-74835.52320145,0.00018633,30]
[354119130,1740258637286,-3059.95859964,0.00018633,30]
[354119131,1740258637302,-4050.0,0.00018633,30]
[354119132,1740258637314,-2719.999997,0.00018633,30]
[354119133,1740258637325,-65859.65616076,0.00018633,30]
[354119134,1740258637336,-2629.81585268,0.00018633,30]
[354119135,1740258637348,-272.049998,0.00018633,30]
[354119136,1740258637359,-10518.65986611,0.00018633,30]
[354119137,1740258637370,-81967.05087,0.00018633,30]
[354119138,1740258637387,-757.1179525,0.00018633,30]
[354119139,1740258637399,-31861.59152705,0.00018633,30]
[354119140,1740258637408,-1576.03654693,0.00018637,30]
[354119141,1740258637419,-25094.3241872,0.0001864,30]
[354119142,1740258637428,-913.39461305,0.00018641,30]
[354119143,1740258637438,-2703.01945334,0.00018641,30]
[354119144,1740258637549,-20891.30862732,0.00018641,30]
[354119145,1740258637560,-255.53133888,0.00018641,30]
[354119146,1740258637571,-627.31501192,0.00018641,30]
[354119147,1740258637583,-400.24999975,0.00018641,30]
[354119148,1740258637595,-382.3260001,0.00018641,30]
[354119149,1740258637608,-443.3625,0.00018641,30]
[354119150,1740258637620,-296.101408,0.00018641,30]
[354119151,1740258637632,-286.29047868,0.00018641,30]
[354119152,1740258637644,-301.35,0.00018641,30]
[354119153,1740258637655,-1125.36084238,0.00018641,30]
[354119154,1740258637666,-696.62044734,0.00018641,30]
[354119155,1740258637905,-1204.0,0.000148,2]
[354119156,1740258637916,-693.03061498,0.00018641,30]
[354119157,1740258637926,-515.05927803,0.00018646,30]
[354119158,1740258637935,-25094.3241872,0.00018648,30]
[354119159,1740258637945,-22297.05645826,0.00018649,30]
[354119160,1740258637956,-1503.88525785,0.00018649,30]
[354119161,1740258637967,-757.13703748,0.00018649,30]
[354119162,1740258638019,-18888.78593275,0.00018649,30]
[354119163,1740258638076,-19028.66123235,0.00018649,30]
[354119164,1740258638088,-169503.83409735,0.00018649,30]
[354119165,1740258638100,-775.44461026,0.00018649,30]
[354119170,1740258640016,-3667.01248832,0.00018649,30]
[354119171,1740258640027,-605.11630001,0.00018649,30]
[354119172,1740258640181,-2407.17336082,0.00018649,30]
[354119173,1740258640290,-738.0,0.00018649,30]
[354119174,1740258640304,-138881.6895075,0.00018649,30]
[354119175,1740258640349,-266.88,0.00018649,30]
[354119176,1740258640360,-648.38324154,0.00018649,30]
[354119177,1740258640372,-522.91188455,0.00018649,30]
[354119420,1740258643118,-7529.9995,0.00018649,30]
[354119503,1740258645869,-2850.395,0.00018649,30]
[354119506,1740258645926,-2877.12511633,0.00018649,30]
[354119507,1740258645937,-39019.93300002,0.00018649,30]
[354119508,1740258646036,-77690.35474903,0.00018649,30]
[354119509,1740258646045,-3881.13789975,0.0001865,2]
[354119510,1740258646054,-72815.46164665,0.00018651,30]
[354119511,1740258646064,-72815.46164665,0.00018652,30]
[354119512,1740258646073,-29101.86672269,0.00018653,30]
[354119513,1740258646082,-794.23097184,0.00018655,30]
[354119514,1740258646092,-200.0,0.00018655,30]
[354119515,1740258646101,-200.0,0.00018655,30]
[354119516,1740258646110,-22422.33802496,0.00018656,30]
[354119517,1740258646119,-23432.72683542,0.00018657,30]
[354119518,1740258646140,-1415.88005593,0.00018657,30]
[354119519,1740258646152,-376.01291854,0.00018657,30]
[354119520,1740258646163,-488.53388344,0.00018657,30]
[354119527,1740258726583,4100.0,0.000187,120]
[354119528,1740259525294,-10000.0,0.0001,2]
[354119529,1740259526145,-10000.0,0.0001,2]
[354119530,1740259526913,-10000.0,0.0001,2]
[354119531,1740259527731,-10000.0,0.0001,2]
[354119532,1740259528591,-10000.0,0.0001,2]
[354119533,1740259529315,-10000.0,0.0001,2]
[354119535,1740259534600,280.04,8.767e-05,2]
[354119536,1740259546852,-10000.0,0.0001,2]
[354119538,1740259617519,-3105.0,0.0001,2]
[354119552,1740259832222,-500.0,9.999e-05,2]
[354119553,1740259832231,-500.0,9.999e-05,2]
[354119554,1740259832240,-455.85027317,9.999e-05,2]
[354119555,1740259832250,-472.94972683,0.0001,2]
[354119556,1740259832335,-20626.72987099,0.0001,2]
[354119557,1740259832345,-550.0,0.0001,2]
[354119558,1740259832354,-113235.52109669,0.0001,2]
[354119559,1740259832365,-11164.97929165,0.0001,2]
[354119736,1740259838179,-17238.63889999,0.0001,2]
[354119737,1740259840272,-2254.030016,0.0001,2]
[354119738,1740259840284,-1573.250001,0.0001,2]
[354119739,1740259840388,-388.86363569,0.0001,2]
[354119740,1740259840735,-777.94038277,0.0001,2]
[354119974,1740259843104,-206287.1409025,0.0001,2]
[354119978,1740259843115,-2494.245,0.0001,2]
[354119986,1740259843167,-986.58,0.0001,2]
[354119988,1740259843178,-14446.45335528,0.0001,2]
[354119990,1740259843190,-6414.789155,0.0001,2]
[354119995,1740259843230,-16694.49999995,0.0001,2]
[354120003,1740259843290,-1935.895,0.0001,2]
[354120005,1740259843302,-5490.29494872,0.0001,2]
[354120007,1740259843313,-621.59999998,0.0001,2]
[354120012,1740259843349,-1254.32754042,0.0001,2]
[354120014,1740259843361,-403.92485244,0.0001,2]
[354120045,1740259846250,-7159.14221858,0.0001,2]
[354120046,1740259846266,-508.52999999,0.0001,2]
[354120047,1740259846278,-4345.12841488,0.0001,2]
[354120048,1740259846308,-238057.87065393,0.0001,2]
[354120049,1740259846369,-83121.96370189,0.0001,2]
[354120053,1740260235244,502.86,9.092e-05,2]
[354120055,1740260600151,151.47,8.767e-05,2]
[354120056,1740260858161,-400.0,9.8e-05,3]
[354120057,1740260858186,-900.0,9.9e-05,3]
[354120058,1740260858216,-155.0,0.0001,3]
[354120059,1740260858242,-1400.0,0.0001,3]
[354120060,1740260858267,-159.0,0.0001,3]
[354120061,1740260886197,-9700.0,9.751e-05,2]
[354120062,1740260886221,-2918.03,9.8e-05,2]
[354120063,1740260886248,-81.97,9.8e-05,2]
[354120067,1740261032334,-83.092,9.8e-05,2]
[354120068,1740261032345,-203.3519,9.9e-05,2]
[354120069,1740261032357,-648.0976,9.9e-05,2]
[354120070,1740261032368,-500.0,9.973e-05,2]
[354120071,1740261032379,-150.0,9.999e-05,2]
[354120072,1740261032390,-500.0,9.999e-05,2]
[354120073,1740261032399,-500.0,9.999e-05,2]
[354120074,1740261032409,-567.10759456,9.999e-05,2]
[354120075,1740261032420,-82561.56515617,0.0001,2]
[354120076,1740261032431,-268.59,0.0001,2]
[354120077,1740261032444,-390890.97526363,0.0001,2]
[354120078,1740261032455,-428.94,0.0001,2]
[354120079,1740261032466,-19852.96081902,0.0001,2]
[354120080,1740261032477,-4014.45255788,0.0001,2]
[354120081,1740261032491,-20169.91121069,0.0001,2]
[354120082,1740261032517,-1065138.02215303,0.0001,2]
[354120083,1740261032531,-206574.99010791,0.0001,2]
[354120084,1740261032542,-1127.60033307,0.0001,2]
[354120085,1740261032552,-186.57175949,0.0001,2]
[354120086,1740261032563,-78439.55258857,0.0001,2]
[354120087,1740261032574,-241.67278884,0.0001,2]
[354120088,1740261032584,-165.07449993,0.0001,2]
[354120089,1740261032595,-172.70224221,0.0001,2]
[354120090,1740261032605,-1759.04635,0.0001,2]
[354120091,1740261032615,-323.20347793,0.0001,2]
[354120092,1740261032626,-589.14774414,0.0001,2]
[354120093,1740261032637,-159.0,0.0001,3]
[354120094,1740261032647,-155.0,0.0001,3]
[354120095,1740261032658,-844.40195091,0.0001,2]
[354120096,1740261032668,-423.9764473,0.00010356,2]
[354120097,1740261032679,-208.48086479,0.000104,2]
[354120098,1740261032689,-500.0,0.00010521,2]
[354120099,1740261032700,-201.23,0.00010693,2]
[354120100,1740261032710,-250.0,0.00010789,2]
[354120102,1740261032721,-237.58,0.00010794,2]
[354120105,1740261032732,-964.57,0.00010848,2]
[354120107,1740261032744,-161.0976656,0.000109,2]
[354120109,1740261032755,-1000.0,0.00010912,2]
[354120111,1740261032765,-2000.0,0.00010957,2]
[354120113,1740261032776,-510.71007519,0.00010958,2]
[354120116,1740261032787,-500.0,0.00010958,2]
[354120118,1740261032797,-500.0,0.00010958,2]
[354120120,1740261032807,-218.90483761,0.00010958,2]
[354120122,1740261032817,-500.0,0.00010958,2]
[354120124,1740261032828,-500.0,0.00010958,2]
[354120126,1740261032839,-500.0,0.00010958,2]
[354120128,1740261032849,-500.0,0.00010958,2]
[354120130,1740261032858,-500.0,0.00010958,2]
[354120133,1740261032869,-500.0,0.00010958,2]
[354120135,1740261032880,-500.0,0.00010958,2]
[354120137,1740261032890,-500.0,0.00010958,2]
[354120139,1740261032901,-500.0,0.00010958,2]
[354120141,1740261032912,-500.79058016,0.00010958,2]
[354120144,1740261032923,-500.0,0.00010958,2]
[354120146,1740261032934,-500.0,0.00010958,2]
[354120148,1740261032944,-500.0,0.00010958,2]
[354120150,1740261032955,-500.0,0.00010958,2]
[354120152,1740261032966,-500.0,0.00010958,2]
[354120154,1740261032978,-500.0,0.00010958,2]
[354120157,1740261032988,-500.0,0.00010958,2]
[354120159,1740261032998,-500.0,0.00010958,2]
[354120161,1740261033007,-500.0,0.00010958,2]
[354120163,1740261033017,-500.0,0.00010958,2]
[354120165,1740261033027,-500.0,0.00010958,2]
[354120167,1740261033036,-500.0,0.00010958,2]
[354120169,1740261033047,-500.0,0.00010958,2]
[354120171,1740261033057,-500.0,0.00010958,2]
[354120173,1740261033066,-500.0,0.00010958,2]
[354120175,1740261033076,-500.0,0.00010958,2]
[354120177,1740261033087,-500.0,0.00010958,2]
[354120179,1740261033099,-500.0,0.00010958,2]
[354120182,1740261033110,-500.0,0.00010958,2]
[354120184,1740261033121,-500.0,0.00010958,2]
[354120186,1740261033131,-500.0,0.00010958,2]
[354120188,1740261033141,-500.0,0.00010958,2]
[354120190,1740261033150,-500.0,0.00010958,2]
[354120192,1740261033160,-500.0,0.00010958,2]
[354120194,1740261033170,-500.0,0.00010958,2]
[354120196,1740261033180,-500.0,0.00010958,2]
[354120198,1740261033190,-545.19419214,0.00010958,2]
[354120200,1740261033199,-500.0,0.00010958,2]
[354120202,1740261033209,-500.0,0.00010958,2]
[354120204,1740261033219,-500.0,0.00010958,2]
[354120206,1740261033231,-500.0,0.00010958,2]
[354120209,1740261033241,-500.0,0.00010958,2]
[354120211,1740261033252,-500.0,0.00010958,2]
[354120213,1740261033264,-150.0,0.00010959,2]
[354120215,1740261033274,-15518.97,0.00010997,2]
[354120217,1740261033289,-500.0,0.00011041,2]
[354120220,1740261033298,-500.0,0.00011041,2]
[354120222,1740261033308,-6973.07200405,0.00011099,2]
[354120224,1740261033318,-6973.07200404,0.00011099,2]
[354120226,1740261033328,-620.89708682,0.00011099,2]
[354120228,1740261033338,-620.89708673,0.00011099,2]
[354120230,1740261033350,-502.86,0.00011356,2]
[354120232,1740261033362,-620.89708673,0.00011998,2]
[354120234,1740261033372,-6973.07200404,0.00011998,2]
[354120236,1740261033383,-600.0,0.00012,2]
[354120239,1740261033393,-396.96,0.00012055,2]
[354120241,1740261033403,-999.99,0.00012087,2]
[354120243,1740261033415,-9999.99,0.00012087,2]
[354120245,1740261033425,-150.99,0.00012087,2]
[354120247,1740261033436,-150.99,0.00012087,2]
[354120249,1740261033446,-1359.62,0.00012087,2]
[354120251,1740261033457,-481.24,0.00012087,2]
[354120253,1740261033468,-852.98,0.00012087,2]
[354120255,1740261033479,-9999.99,0.00012087,2]
[354120258,1740261033490,-640.53,0.00012087,2]
[354120260,1740261033500,-697.48,0.00012087,2]
[354120262,1740261033511,-1000.0,0.00012276,2]
[354120264,1740261033521,-504.22,0.00012328,2]
[354120266,1740261033533,-499.19,0.00012328,2]
[354120268,1740261033543,-497.01,0.00012328,2]
[354120270,1740261033554,-503.44,0.00012328,2]
[354120272,1740261033564,-501.0,0.00012328,2]
[354120274,1740261033575,-492.77,0.00012328,2]
[354120276,1740261033585,-507.78,0.00012328,2]
[354120279,1740261033595,-508.24,0.00012328,2]
[354120281,1740261033606,-493.04,0.00012328,2]
[354120283,1740261033617,-502.68,0.00012328,2]
[354120285,1740261033627,-493.3,0.00012328,2]
[354120287,1740261033638,-508.92,0.00012328,2]
[354120289,1740261033648,-499.95,0.00012328,2]
[354120291,1740261033659,-497.26,0.00012328,2]
[354120293,1740261033669,-497.06,0.00012328,2]
[354120295,1740261033679,-502.34,0.00012328,2]
[354120297,1740261033689,-494.49,0.00012328,2]
[354120299,1740261033699,-1000.0,0.00012328,2]
[354120301,1740261033710,-1759.04635,0.000124,2]
[354120303,1740261033720,-159.0,0.000124,3]
[354120305,1740261033731,-1000.0,0.00012602,2]
[354120307,1740261033741,-208.48086479,0.0001265,2]
[354120310,1740261033751,-1000.0,0.00012876,2]
[354120312,1740261033762,-300.0,0.00012979,2]
[354120314,1740261033772,-300.0,0.00012979,2]
[354120316,1740261033782,-300.0,0.00012979,2]
[354120318,1740261033792,-300.0,0.00012979,2]
[354120320,1740261033802,-668.57353053,0.00012979,2]
[354120322,1740261033814,-666.0,0.00012979,2]
[354120325,1740261033824,-666.0,0.00012979,2]
[354120327,1740261033834,-137802.91404896,0.0001298,3]
[354120329,1740261033844,-150.0,0.00013,2]
[354120331,1740261033857,-620.89708673,0.00013047,2]
[354120333,1740261033867,-6973.07200404,0.00013047,2]
[354120335,1740261033877,-202.0,0.0001309,2]
[354120337,1740261033886,-1000.0,0.0001315,2]
[354120339,1740261033896,-165.07449993,0.00013233,2]
[354120341,1740261033907,-2500.0,0.00013284,3]
[354120343,1740261033917,-1000.0,0.00013424,2]
[354120346,1740261033927,-202.0,0.0001347,2]
[354120348,1740261033937,-502.86,0.0001362,2]
[354120350,1740261033947,-1000.0,0.0001364,2]
[354120352,1740261033957,-156.08,0.00013698,2]
[354120354,1740261033967,-500.0,0.00013699,13]
[354120355,1740261033977,-500.0,0.00013699,13]
[354120357,1740261033987,-500.0,0.00013699,13]
[354120359,1740261033997,-500.0,0.00013699,13]
[354120361,1740261034007,-500.0,0.00013699,13]
[354120364,1740261034018,-500.0,0.00013699,13]
[354120366,1740261034028,-500.0,0.00013699,13]
[354120368,1740261034038,-500.0,0.00013699,13]
[354120370,1740261034048,-500.0,0.00013699,13]
[354120372,1740261034058,-500.0,0.00013699,13]
[354120374,1740261034068,-500.0,0.00013699,13]
[354120376,1740261034078,-500.0,0.00013699,13]
[354120378,1740261034088,-500.0,0.00013699,13]
[354120380,1740261034098,-500.0,0.00013699,13]
[354120382,1740261034108,-500.0,0.00013699,13]
[354120384,1740261034119,-500.0,0.00013699,13]
[354120386,1740261034129,-500.0,0.00013699,13]
[354120388,1740261034138,-500.0,0.00013699,13]
[354120390,1740261034148,-500.0,0.00013699,13]
[354120392,1740261034159,-500.0,0.00013699,13]
[354120394,1740261034168,-500.0,0.00013699,13]
[354120396,1740261034178,-500.0,0.00013699,13]
[354120398,1740261034188,-500.0,0.00013699,13]
[354120400,1740261034198,-500.0,0.00013699,13]
[354120403,1740261034208,-500.0,0.00013699,13]
[354120405,1740261034219,-500.0,0.00013699,13]
[354120407,1740261034230,-500.0,0.00013699,13]
[354120409,1740261034240,-500.0,0.00013699,13]
[354120411,1740261034250,-500.0,0.00013699,13]
[354120413,1740261034260,-500.0,0.00013699,13]
[354120415,1740261034271,-443.0,0.00013699,13]
[354120417,1740261034283,-500.0,0.00013699,13]
[354120419,1740261034293,-500.0,0.00013699,13]
[354120434,1740261034522,-200.0,0.00013699,2]
[354120437,1740261034539,-150.0,0.00013699,2]
[354120439,1740261034550,-154.80815726,0.00013739,2]
[354120441,1740261034559,-202.0,0.0001385,2]
[354120443,1740261034569,-150.0,0.00014059,2]
[354120445,1740261034579,-620.89708673,0.00014096,2]
[354120447,1740261034588,-6973.07200404,0.00014096,2]
[354120449,1740261034597,-8774.74875851,0.0001415,2]
[354120451,1740261034607,-202.0,0.0001423,2]
[354120453,1740261034616,-1183.0,0.00014283,2]
[354120455,1740261034626,-241.001,0.00014301,2]
[354120457,1740261034635,-5229.87938392,0.00014398,3]
[354120459,1740261034644,-150.0,0.0001442,2]
[354120461,1740261034654,-220.96,0.00014533,2]
[354120463,1740261034663,-202.0,0.0001461,2]
[354120465,1740261034672,-150.0,0.0001478,2]
[354120467,1740261034681,-500.0,0.00014799,2]
[354120469,1740261034690,-300.0,0.00014799,2]
[354120471,1740261034700,-303.2840554,0.00014799,2]
[354120473,1740261034709,-666.0,0.00014799,2]
[354120475,1740261034719,-188975.79904716,0.000148,3]
[354120477,1740261034737,-881.85133044,0.000148,3]
[354120480,1740261034748,-584.860001,0.000148,3]
[354120482,1740261034759,-497.82,0.000148,3]
[354120484,1740261034770,-2735.4,0.000148,3]
[354120486,1740261034781,-6429.18923699,0.000148,3]
[354120489,1740261034797,-2682.08096512,0.000148,3]
[354120491,1740261034808,-29827.17188899,0.000148,3]
[354120493,1740261034819,-1486.97959309,0.000148,3]
[354120495,1740261034830,-32624.90685835,0.000148,3]
[354120498,1740261034841,-34993.77237333,0.000148,3]
[354120861,1740261038330,-379.9751245,0.00011099,2]
[354120865,1740261038390,-683.85143187,0.00011099,2]
[354120885,1740261038560,-282.23840945,0.00011099,2]
[354121108,1740261040677,-15327.05590617,0.00011099,2]
[354121110,1740261040686,-7512.81054042,0.000148,3]
[354121112,1740261040697,-651.28370967,0.000148,3]
[354121115,1740261040709,-396.69360933,0.000148,3]
[354121117,1740261040720,-431.51590947,0.000148,3]
[354121119,1740261040731,-1168.41788287,0.000148,3]
[354121121,1740261040742,-3433.7363163,0.000148,3]
[354121123,1740261040752,-1499.86234612,0.000148,3]
[354121125,1740261040763,-476.34270654,0.000148,3]
[354121128,1740261040774,-4099.84,0.000148,3]
[354121139,1740261040865,-5265.8004507,0.000148,3]
[354121385,1740261043396,-298704.23394511,0.000148,3]
[354121387,1740261043406,-159.0,0.000148,3]
[354121389,1740261043415,-1265.4898,0.00014899,2]
[354121391,1740261043425,-1900.0,0.000149,5]
[354121393,1740261043435,-1759.04635,0.000149,2]
[354121395,1740261043444,-500.0,0.00014936,2]
[354121397,1740261043454,-500.0,0.00014954,2]
[354121399,1740261043463,-500.0,0.00014954,2]
[354121401,1740261043473,-500.0,0.00014954,2]
[354121403,1740261043482,-202.0,0.0001499,2]
[354121405,1740261043491,-7778.0,0.00015,3]
[354121407,1740261043500,-1000.0,0.00015004,2]
[354121409,1740261043509,-401.55990489,0.00015068,2]
[354121411,1740261043520,-1435.14009511,0.00015068,2]
[354121413,1740261043530,-300.0,0.00015068,2]
[354121415,1740261043539,-381.0487706,0.00015073,2]
[354121417,1740261043551,-118.9512294,0.00015073,2]
[354121419,1740261043560,-237.58,0.00015111,2]
[354121421,1740261043569,-150.0,0.00015141,2]
[354121423,1740261043579,-620.89708673,0.00015145,2]
[354121425,1740261043588,-6973.07200404,0.00015145,2]
[354121427,1740261043598,-500.0,0.0001521,2]
[354121429,1740261043607,-500.0,0.00015347,2]
[354121431,1740261043616,-205.0,0.0001537,2]
[354121433,1740261043625,-202.0,0.0001537,2]
[354121435,1740261043634,-206.0,0.0001537,2]
[354121437,1740261043643,-208.48086479,0.000154,2]
[354121439,1740261043653,-500.0,0.00015484,2]
[354121441,1740261043662,-150.0,0.00015501,2]
[354121443,1740261043672,-280.04,0.00015516,2]
[354121445,1740261043681,-151.47,0.00015516,2]
[354121447,1740261043690,-396.37888962,0.00015555,2]
[354121449,1740261043700,-74.66676523,0.00015621,2]
[354121452,1740261043711,-425.33323477,0.00015621,2]
[354121454,1740261043720,-205.0,0.0001575,2]
[354121456,1740261043730,-202.0,0.0001575,2]
[354121458,1740261043739,-206.0,0.0001575,2]
[354121460,1740261043748,-253.02,0.00015758,2]
[354121461,1740261043758,-150.0,0.00015862,2]
[354121464,1740261043767,-502.86,0.00015884,2]
[354121466,1740261043777,-2500.0,0.00015984,4]
[354121468,1740261043786,-205.0,0.0001613,2]
[354121470,1740261043796,-202.0,0.0001613,2]
[354121471,1740261043805,-206.0,0.0001613,2]
[354121473,1740261043814,-620.89708673,0.00016194,2]
[354121475,1740261043823,-6973.07200404,0.00016194,2]
[354121478,1740261043833,-150.0,0.00016222,2]
[354121479,1740261043842,-220.96,0.0001635,2]
[354121481,1740261043851,-1000.0,0.00016368,2]
[354121483,1740261043860,-1469.0,0.00016374,2]
[354121485,1740261043869,-300.0,0.00016438,2]
[354121487,1740261043878,-205.0,0.0001651,2]
[354121489,1740261043887,-202.0,0.0001651,2]
[354121491,1740261043896,-206.0,0.0001651,2]
[354121493,1740261043905,-1469.0,0.00016542,2]
[354121495,1740261043915,-165.07449993,0.00016567,2]
[354121497,1740261043925,-150.0,0.00016583,2]
[354121499,1740261043934,-1469.0,0.00016711,2]
[354121502,1740261043943,-176.51,0.00016712,2]
[354121503,1740261043952,-1469.0,0.0001688,2]
[354121505,1740261043961,-535.24989369,0.0001688,2]